[Event "Early-Titled-Tuesday-Blitz-May-28-2024"]
[Site "Chess.com"]
[Date "2024.05.28"]
[Round "9"]
[White "SaraBlackPanther"]
[Black "NiranjanNavalgund"]
[Result "0-1"]
[WhiteElo "2753"]
[BlackElo "2510"]
[TimeControl "180+1"]
[EndTime "9:49:06 PDT"]
[Termination "NiranjanNavalgund won by resignation"]

1. d4 {[%clk 0:03:00.9]} 1... Nf6 {[%clk 0:02:54.5]} 2. c4 {[%clk 0:02:59]} 2...
e6 {[%clk 0:02:52.7]} 3. Nc3 {[%clk 0:02:58.1]} 3... Bb4 {[%clk 0:02:51.7]} 4.
Nf3 {[%clk 0:02:56.4]} 4... O-O {[%clk 0:02:49]} 5. Qb3 {[%clk 0:02:54.6]} 5...
c5 {[%clk 0:02:48.5]} 6. dxc5 {[%clk 0:02:45.7]} 6... Na6 {[%clk 0:02:48.2]} 7.
a3 {[%clk 0:02:41.9]} 7... Bxc3+ {[%clk 0:02:46.7]} 8. Qxc3 {[%clk 0:02:42.8]}
8... Nxc5 {[%clk 0:02:47.4]} 9. Be3 {[%clk 0:02:33.9]} 9... Nce4 {[%clk
0:02:46.2]} 10. Qd4 {[%clk 0:02:18.2]} 10... d5 {[%clk 0:02:41]} 11. cxd5 {[%clk
0:02:18.2]} 11... exd5 {[%clk 0:02:40]} 12. g3 {[%clk 0:02:18.4]} 12... b6
{[%clk 0:02:33.4]} 13. Bg2 {[%clk 0:02:17.8]} 13... Ba6 {[%clk 0:02:33.9]} 14.
Nd2 {[%clk 0:02:07.2]} 14... Rc8 {[%clk 0:02:21.6]} 15. Qa4 {[%clk 0:01:54.2]}
15... Bc4 {[%clk 0:02:04.8]} 16. Nxc4 {[%clk 0:01:43.4]} 16... Rxc4 {[%clk
0:02:05.7]} 17. Qb3 {[%clk 0:01:41.1]} 17... Nc5 {[%clk 0:01:47.7]} 18. Bxc5
{[%clk 0:01:36.4]} 18... bxc5 {[%clk 0:01:48.6]} 19. O-O {[%clk 0:01:35]} 19...
Qb6 {[%clk 0:01:49]} 20. Qxb6 {[%clk 0:01:24.1]} 20... axb6 {[%clk 0:01:49.9]}
21. Rfc1 {[%clk 0:01:23.8]} 21... Rxc1+ {[%clk 0:01:48.5]} 22. Rxc1 {[%clk
0:01:24.7]} 22... g6 {[%clk 0:01:41.8]} 23. Kf1 {[%clk 0:01:24.4]} 23... d4
{[%clk 0:01:27.8]} 24. Ke1 {[%clk 0:01:08.1]} 24... Rc8 {[%clk 0:01:21.4]} 25.
Kd2 {[%clk 0:01:01.1]} 25... Kf8 {[%clk 0:01:18.5]} 26. Bf3 {[%clk 0:00:53.3]}
26... Ke7 {[%clk 0:01:17.5]} 27. Kd3 {[%clk 0:00:53.2]} 27... Kd6 {[%clk
0:01:17.2]} 28. e3 {[%clk 0:00:47.8]} 28... dxe3 {[%clk 0:01:16.5]} 29. Kxe3
{[%clk 0:00:48.7]} 29... Re8+ {[%clk 0:01:15.3]} 30. Kd3 {[%clk 0:00:45.7]}
30... b5 {[%clk 0:01:15.6]} 31. Kc2 {[%clk 0:00:42]} 31... c4 {[%clk 0:01:14.3]}
32. b3 {[%clk 0:00:36]} 32... Kc5 {[%clk 0:01:13.7]} 33. Kb2 {[%clk 0:00:31.1]}
33... Nd7 {[%clk 0:01:11.8]} 34. a4 {[%clk 0:00:25.7]} 34... Nb6 {[%clk
0:01:11.5]} 35. axb5 {[%clk 0:00:24.8]} 35... Kxb5 {[%clk 0:01:11.4]} 36. bxc4+
{[%clk 0:00:21.3]} 36... Nxc4+ {[%clk 0:01:12.3]} 37. Kc3 {[%clk 0:00:21.7]}
37... Rc8 {[%clk 0:01:10.8]} 38. Rb1+ {[%clk 0:00:19.5]} 38... Kc5 {[%clk
0:01:10.9]} 39. Ra1 {[%clk 0:00:18.6]} 39... Nd6 {[%clk 0:01:09.6]} 40. Kd3
{[%clk 0:00:18.8]} 40... Rc7 {[%clk 0:01:07.2]} 41. Rc1+ {[%clk 0:00:18.2]}
41... Kb6 {[%clk 0:01:07.1]} 42. Rxc7 {[%clk 0:00:19.1]} 42... Kxc7 {[%clk
0:01:08]} 43. Kd4 {[%clk 0:00:20]} 43... Kd7 {[%clk 0:01:06.6]} 44. Ke5 {[%clk
0:00:20.4]} 44... Ke7 {[%clk 0:01:06.9]} 45. Kf4 {[%clk 0:00:20.6]} 45... f5
{[%clk 0:01:05.6]} 46. Kg5 {[%clk 0:00:20.5]} 46... Nf7+ {[%clk 0:01:04.1]} 47.
Kf4 {[%clk 0:00:20.8]} 47... Kf6 {[%clk 0:01:05]} 48. Bd5 {[%clk 0:00:21.1]}
48... g5+ {[%clk 0:01:05.2]} 49. Ke3 {[%clk 0:00:21.4]} 49... Nd6 {[%clk
0:01:04.8]} 50. Bb3 {[%clk 0:00:20.3]} 50... Ke5 {[%clk 0:01:05]} 51. f4+ {[%clk
0:00:20.1]} 51... gxf4+ {[%clk 0:01:05.1]} 52. gxf4+ {[%clk 0:00:21]} 52... Kf6
{[%clk 0:01:06]} 53. Kd4 {[%clk 0:00:21.4]} 53... Ne4 {[%clk 0:01:06.1]} 54. Bd5
{[%clk 0:00:21.5]} 54... Nf2 {[%clk 0:01:05.6]} 55. Bf3 {[%clk 0:00:21.7]} 55...
Kg6 {[%clk 0:01:00.8]} 56. Ke5 {[%clk 0:00:16.6]} 56... Nd3+ {[%clk 0:00:59.7]}
57. Kd4 {[%clk 0:00:16.1]} 57... Nxf4 {[%clk 0:00:58.7]} 58. Ke3 {[%clk
0:00:16.8]} 58... Ne6 {[%clk 0:00:58.5]} 59. Kf2 {[%clk 0:00:17.2]} 59... Kg5
{[%clk 0:00:58.7]} 60. Bd5 {[%clk 0:00:17.1]} 60... Nc5 {[%clk 0:00:57.7]} 61.
Bc4 {[%clk 0:00:17.5]} 61... Kf4 {[%clk 0:00:57.8]} 62. Bg8 {[%clk 0:00:17]}
62... Ne4+ {[%clk 0:00:58.7]} 63. Kg2 {[%clk 0:00:16.9]} 63... h5 {[%clk
0:00:58.6]} 64. Bd5 {[%clk 0:00:16.8]} 64... Ng5 {[%clk 0:00:58.7]} 65. Bc6
{[%clk 0:00:14.8]} 65... h4 {[%clk 0:00:58.1]} 66. Kf2 {[%clk 0:00:14]} 66...
Ne4+ {[%clk 0:00:57.6]} 67. Kg2 {[%clk 0:00:13.8]} 67... Kg5 {[%clk 0:00:55.3]}
68. Kf3 {[%clk 0:00:12.5]} 68... Nd2+ {[%clk 0:00:55.6]} 69. Ke3 {[%clk
0:00:12.8]} 69... Nc4+ {[%clk 0:00:56]} 70. Kf2 {[%clk 0:00:13.1]} 70... Kf4
{[%clk 0:00:55.8]} 71. Bb7 {[%clk 0:00:12.7]} 71... Ne5 {[%clk 0:00:56.2]} 72.
h3 {[%clk 0:00:12.5]} 72... Nd3+ {[%clk 0:00:55.4]} 73. Kg2 {[%clk 0:00:13]}
73... Nc5 {[%clk 0:00:56.3]} 74. Bc6 {[%clk 0:00:12.7]} 74... Ke3 {[%clk
0:00:56.8]} 75. Ba8 {[%clk 0:00:12]} 75... f4 {[%clk 0:00:57.1]} 76. Bf3 {[%clk
0:00:11.7]} 76... Nd3 {[%clk 0:00:57.3]} 77. Bg4 {[%clk 0:00:11.4]} 77... f3+
{[%clk 0:00:55.3]} 78. Kf1 {[%clk 0:00:11.6]} 78... Ne5 {[%clk 0:00:53.7]} 79.
Bc8 {[%clk 0:00:11.1]} 79... Nc4 {[%clk 0:00:54.1]} 80. Ba6 {[%clk 0:00:10.3]}
80... Nd2+ {[%clk 0:00:52.9]} 81. Kg1 {[%clk 0:00:11]} 81... Ne4 {[%clk
0:00:52]} 82. Kf1 {[%clk 0:00:10.7]} 82... Kf4 {[%clk 0:00:52.1]} 83. Bb7 {[%clk
0:00:09.4]} 83... Nd2+ {[%clk 0:00:50.5]} 84. Kf2 {[%clk 0:00:09.9]} 84... Ne4+
{[%clk 0:00:51.4]} 85. Kf1 {[%clk 0:00:09]} 85... Ng5 {[%clk 0:00:51.9]} 86. Bc8
{[%clk 0:00:08.7]} 86... Kg3 {[%clk 0:00:51.9]} 87. Bb7 {[%clk 0:00:06.4]} 87...
Nxh3 {[%clk 0:00:51.2]} 88. Bc8 {[%clk 0:00:07.2]} 88... Nf4 {[%clk 0:00:50.9]}
0-1

[Event "Early-Titled-Tuesday-Blitz-May-28-2024"]
[Site "Chess.com"]
[Date "2024.05.28"]
[Round "10"]
[White "Dubs123"]
[Black "Mesa_1"]
[Result "1-0"]
[WhiteElo "2464"]
[BlackElo "2560"]
[TimeControl "180+1"]
[EndTime "9:54:22 PDT"]
[Termination "Dubs123 won by resignation"]

1. d4 {[%clk 0:02:59.7]} 1... Nf6 {[%clk 0:02:58.5]} 2. c4 {[%clk 0:02:59.2]}
2... g6 {[%clk 0:02:59]} 3. Nc3 {[%clk 0:02:59.1]} 3... Bg7 {[%clk 0:02:59.6]}
4. e4 {[%clk 0:02:58.7]} 4... d6 {[%clk 0:03:00.3]} 5. f4 {[%clk 0:02:58.6]}
5... O-O {[%clk 0:02:59.9]} 6. Nf3 {[%clk 0:02:58.4]} 6... c5 {[%clk 0:03:00.5]}
7. d5 {[%clk 0:02:58.6]} 7... Bg4 {[%clk 0:03:00.9]} 8. Be2 {[%clk 0:02:57.8]}
8... e6 {[%clk 0:03:00]} 9. dxe6 {[%clk 0:02:52.9]} 9... fxe6 {[%clk 0:03:00.9]}
10. O-O {[%clk 0:02:52.5]} 10... Nc6 {[%clk 0:03:00.8]} 11. Be3 {[%clk
0:02:48.7]} 11... Bxf3 {[%clk 0:02:52.6]} 12. Bxf3 {[%clk 0:02:48.2]} 12... Nd4
{[%clk 0:02:53.3]} 13. Bxd4 {[%clk 0:02:06.9]} 13... cxd4 {[%clk 0:02:52.8]} 14.
Nb5 {[%clk 0:01:51.2]} 14... e5 {[%clk 0:02:50.2]} 15. fxe5 {[%clk 0:01:50.3]}
15... dxe5 {[%clk 0:02:51.1]} 16. c5 {[%clk 0:01:50.4]} 16... Qd7 {[%clk
0:02:37.3]} 17. Nd6 {[%clk 0:01:44]} 17... Ne8 {[%clk 0:02:03.1]} 18. Qb3+
{[%clk 0:01:41.3]} 18... Kh8 {[%clk 0:02:01.7]} 19. Bg4 {[%clk 0:01:32.7]} 19...
Rxf1+ {[%clk 0:01:56.1]} 20. Rxf1 {[%clk 0:01:31.4]} 1-0

[Event "Early-Titled-Tuesday-Blitz-May-28-2024"]
[Site "Chess.com"]
[Date "2024.05.28"]
[Round "10"]
[White "Al_Shima"]
[Black "Viktor_Poddubnyi"]
[Result "1-0"]
[WhiteElo "2485"]
[BlackElo "2315"]
[TimeControl "180+1"]
[EndTime "9:54:33 PDT"]
[Termination "Al_Shima won by resignation"]

1. c4 {[%clk 0:03:00]} 1... g6 {[%clk 0:03:00.2]} 2. Nc3 {[%clk 0:02:55.8]} 2...
Bg7 {[%clk 0:03:00.5]} 3. d4 {[%clk 0:02:55.7]} 3... c5 {[%clk 0:03:00.6]} 4.
Nf3 {[%clk 0:02:54.4]} 4... cxd4 {[%clk 0:02:59.9]} 5. Nxd4 {[%clk 0:02:55.3]}
5... Nc6 {[%clk 0:03:00.3]} 6. Nxc6 {[%clk 0:02:55.2]} 6... dxc6 {[%clk
0:03:00.4]} 7. g3 {[%clk 0:02:55.8]} 7... Bxc3+ {[%clk 0:02:59.3]} 8. bxc3
{[%clk 0:02:56]} 8... Qxd1+ {[%clk 0:02:59.8]} 9. Kxd1 {[%clk 0:02:56.9]} 9...
Be6 {[%clk 0:02:59.7]} 10. Kc2 {[%clk 0:02:57.8]} 10... Bxc4 {[%clk 0:02:54.9]}
11. a4 {[%clk 0:02:52.4]} 11... O-O-O {[%clk 0:02:49.7]} 12. Bh3+ {[%clk
0:02:50.3]} 12... f5 {[%clk 0:02:33.4]} 13. e4 {[%clk 0:02:50]} 13... Bd3+
{[%clk 0:02:29.6]} 14. Kb3 {[%clk 0:02:50.4]} 14... Bxe4 {[%clk 0:02:29]} 15.
Be3 {[%clk 0:02:51.3]} 15... Bxh1 {[%clk 0:02:01.8]} 16. Rxh1 {[%clk 0:02:52.2]}
16... Nf6 {[%clk 0:02:01.2]} 17. Bxa7 {[%clk 0:02:51.9]} 17... Ne4 {[%clk
0:01:50.9]} 18. Bd4 {[%clk 0:02:50.3]} 18... Rhe8 {[%clk 0:01:46.6]} 19. Ra1
{[%clk 0:02:44.1]} 19... e5 {[%clk 0:01:42.1]} 20. Be3 {[%clk 0:02:44.1]} 20...
Rd6 {[%clk 0:01:24.4]} 21. a5 {[%clk 0:02:43.8]} 21... Kd7 {[%clk 0:01:13]} 22.
Bg2 {[%clk 0:02:27.9]} 22... Nd2+ {[%clk 0:01:07.4]} 23. Kc2 {[%clk 0:02:26.8]}
23... Nc4 {[%clk 0:01:06.6]} 24. Bc5 {[%clk 0:02:25.6]} 24... Rd2+ {[%clk
0:01:04.5]} 25. Kb3 {[%clk 0:02:25.8]} 25... Rxf2 {[%clk 0:01:01.2]} 26. Bxf2
{[%clk 0:02:25.7]} 1-0

[Event "Early-Titled-Tuesday-Blitz-May-28-2024"]
[Site "Chess.com"]
[Date "2024.05.28"]
[Round "10"]
[White "ploxoi"]
[Black "Kostya0705"]
[Result "1-0"]
[WhiteElo "2416"]
[BlackElo "2581"]
[TimeControl "180+1"]
[EndTime "9:54:40 PDT"]
[Termination "ploxoi won by resignation"]

1. d4 {[%clk 0:03:00.9]} 1... Nf6 {[%clk 0:02:59.6]} 2. c4 {[%clk 0:03:01.2]}
2... e6 {[%clk 0:02:59.7]} 3. g3 {[%clk 0:03:01.4]} 3... d5 {[%clk 0:02:59.1]}
4. Nf3 {[%clk 0:03:01.8]} 4... Bb4+ {[%clk 0:02:58]} 5. Bd2 {[%clk 0:03:01.6]}
5... a5 {[%clk 0:02:56.1]} 6. Bg2 {[%clk 0:03:01.7]} 6... O-O {[%clk 0:02:53.2]}
7. Qc2 {[%clk 0:03:01.1]} 7... Bxd2+ {[%clk 0:02:49.3]} 8. Qxd2 {[%clk
0:03:00.9]} 8... c6 {[%clk 0:02:49.9]} 9. O-O {[%clk 0:03:00.6]} 9... dxc4
{[%clk 0:02:48.2]} 10. a4 {[%clk 0:03:00.4]} 10... Nd5 {[%clk 0:02:44.9]} 11.
Na3 {[%clk 0:02:59]} 11... Nb6 {[%clk 0:02:42.3]} 12. Rfc1 {[%clk 0:02:57.5]}
12... N8d7 {[%clk 0:02:37.9]} 13. Nxc4 {[%clk 0:02:56]} 13... Nxc4 {[%clk
0:02:38.8]} 14. Rxc4 {[%clk 0:02:56.5]} 14... Nb6 {[%clk 0:02:39.7]} 15. Rc5
{[%clk 0:02:57.1]} 15... Nd7 {[%clk 0:02:38.2]} 16. Rc2 {[%clk 0:02:55.7]} 16...
Qe7 {[%clk 0:02:36.3]} 17. Qc3 {[%clk 0:02:51.5]} 17... Nb6 {[%clk 0:02:26.5]}
18. b3 {[%clk 0:02:48.4]} 18... Nd5 {[%clk 0:02:24.4]} 19. Qc5 {[%clk
0:02:48.3]} 19... Qxc5 {[%clk 0:02:22.3]} 20. dxc5 {[%clk 0:02:48.6]} 20... Bd7
{[%clk 0:02:21.4]} 21. Rd2 {[%clk 0:02:45.8]} 21... Rfd8 {[%clk 0:02:20.8]} 22.
Ne5 {[%clk 0:02:42.9]} 22... Be8 {[%clk 0:02:18.6]} 23. Nc4 {[%clk 0:02:41.9]}
23... f6 {[%clk 0:02:15.4]} 24. Rad1 {[%clk 0:02:38.6]} 24... Rdb8 {[%clk
0:02:04.9]} 25. e4 {[%clk 0:02:29.4]} 25... Nb4 {[%clk 0:01:56.6]} 26. Nb6
{[%clk 0:02:18.4]} 26... Ra7 {[%clk 0:01:48.4]} 27. Bh3 {[%clk 0:02:16]} 27...
Kf7 {[%clk 0:01:47.4]} 28. Rd6 {[%clk 0:02:04.7]} 28... e5 {[%clk 0:01:33.3]}
29. Be6+ {[%clk 0:02:01.4]} 29... Ke7 {[%clk 0:01:28.8]} 30. Nc8+ {[%clk
0:01:59]} 1-0

[Event "Early-Titled-Tuesday-Blitz-May-28-2024"]
[Site "Chess.com"]
[Date "2024.05.28"]
[Round "10"]
[White "SaraBlackPanther"]
[Black "DrCeltic"]
[Result "0-1"]
[WhiteElo "2742"]
[BlackElo "2610"]
[TimeControl "180+1"]
[EndTime "9:54:42 PDT"]
[Termination "DrCeltic won by resignation"]

1. d4 {[%clk 0:03:00.9]} 1... Nf6 {[%clk 0:02:59.7]} 2. c4 {[%clk 0:03:00]} 2...
c6 {[%clk 0:03:00.1]} 3. Nc3 {[%clk 0:02:58.3]} 3... d5 {[%clk 0:03:00.6]} 4.
cxd5 {[%clk 0:02:58.6]} 4... cxd5 {[%clk 0:03:00.8]} 5. Bf4 {[%clk 0:02:59.3]}
5... Nc6 {[%clk 0:03:01.2]} 6. e3 {[%clk 0:02:59.1]} 6... a6 {[%clk 0:03:00.7]}
7. Rc1 {[%clk 0:02:57.9]} 7... Bg4 {[%clk 0:02:51.2]} 8. Nf3 {[%clk 0:02:44]}
8... Bxf3 {[%clk 0:02:49.6]} 9. Qxf3 {[%clk 0:02:43.5]} 9... e6 {[%clk
0:02:49.6]} 10. Bd3 {[%clk 0:02:40.9]} 10... Bd6 {[%clk 0:02:49]} 11. O-O {[%clk
0:02:39.7]} 11... Bxf4 {[%clk 0:02:48.5]} 12. Qxf4 {[%clk 0:02:40.6]} 12... O-O
{[%clk 0:02:48.6]} 13. a3 {[%clk 0:02:37.4]} 13... Rc8 {[%clk 0:02:48]} 14. Na4
{[%clk 0:02:36.1]} 14... Na5 {[%clk 0:02:37.7]} 15. Nc5 {[%clk 0:02:30.4]} 15...
Qe7 {[%clk 0:02:24.7]} 16. Rc3 {[%clk 0:02:11.2]} 16... Nc4 {[%clk 0:02:17.9]}
17. b3 {[%clk 0:01:58.7]} 17... Nxa3 {[%clk 0:02:09.4]} 18. Rfc1 {[%clk
0:01:58.5]} 18... Nb5 {[%clk 0:02:03.9]} 19. Bxb5 {[%clk 0:01:52]} 19... axb5
{[%clk 0:02:03.7]} 20. h3 {[%clk 0:01:40.9]} 20... h6 {[%clk 0:01:59.9]} 21. Ne4
{[%clk 0:01:23.4]} 21... Rxc3 {[%clk 0:01:51.7]} 22. Nxf6+ {[%clk 0:01:23.9]}
22... Qxf6 {[%clk 0:01:48.5]} 23. Qxf6 {[%clk 0:01:24.2]} 23... Rxc1+ {[%clk
0:01:47.6]} 0-1

[Event "Early-Titled-Tuesday-Blitz-May-28-2024"]
[Site "Chess.com"]
[Date "2024.05.28"]
[Round "10"]
[White "NovakRatko"]
[Black "AnaKuchava"]
[Result "1-0"]
[WhiteElo "2365"]
[BlackElo "2196"]
[TimeControl "180+1"]
[EndTime "9:54:47 PDT"]
[Termination "NovakRatko won by checkmate"]

1. d4 {[%clk 0:02:46.9]} 1... d5 {[%clk 0:02:57.9]} 2. c4 {[%clk 0:02:46.4]}
2... e6 {[%clk 0:02:58.1]} 3. cxd5 {[%clk 0:02:45.4]} 3... exd5 {[%clk
0:02:58.2]} 4. Nc3 {[%clk 0:02:46]} 4... c6 {[%clk 0:02:58.3]} 5. f3 {[%clk
0:02:43.9]} 5... Nf6 {[%clk 0:02:57.7]} 6. e4 {[%clk 0:02:43.8]} 6... dxe4
{[%clk 0:02:56.7]} 7. fxe4 {[%clk 0:02:44.7]} 7... Bb4 {[%clk 0:02:56.8]} 8. Qd3
{[%clk 0:02:41.6]} 8... O-O {[%clk 0:02:51.3]} 9. Be2 {[%clk 0:02:35.7]} 9...
Re8 {[%clk 0:02:47.9]} 10. e5 {[%clk 0:02:34.3]} 10... Nd5 {[%clk 0:02:47]} 11.
Nf3 {[%clk 0:02:34.7]} 11... Bg4 {[%clk 0:02:41.2]} 12. Ng5 {[%clk 0:01:17.7]}
12... Bxe2 {[%clk 0:02:18.4]} 13. Qxh7+ {[%clk 0:01:12.2]} 13... Kf8 {[%clk
0:02:17.9]} 14. Kxe2 {[%clk 0:00:59.5]} 14... Nxc3+ {[%clk 0:02:13.5]} 15. bxc3
{[%clk 0:00:56.9]} 15... Bxc3 {[%clk 0:02:11]} 16. Ba3+ {[%clk 0:00:55.5]} 16...
Re7 {[%clk 0:01:51.2]} 17. Qh8# {[%clk 0:00:53.5]} 1-0

[Event "Early-Titled-Tuesday-Blitz-May-28-2024"]
[Site "Chess.com"]
[Date "2024.05.28"]
[Round "10"]
[White "bazar-wokzal"]
[Black "UK_23"]
[Result "1-0"]
[WhiteElo "2587"]
[BlackElo "2413"]
[TimeControl "180+1"]
[EndTime "9:54:56 PDT"]
[Termination "bazar-wokzal won by resignation"]

1. e4 {[%clk 0:03:00.9]} 1... c5 {[%clk 0:02:51.2]} 2. c3 {[%clk 0:03:00.4]}
2... d5 {[%clk 0:02:47.3]} 3. exd5 {[%clk 0:03:00.2]} 3... Qxd5 {[%clk
0:02:48.2]} 4. d4 {[%clk 0:03:00.3]} 4... e6 {[%clk 0:02:48.7]} 5. a3 {[%clk
0:02:59.7]} 5... cxd4 {[%clk 0:02:45.6]} 6. cxd4 {[%clk 0:02:59.6]} 6... Nc6
{[%clk 0:02:45.7]} 7. Nf3 {[%clk 0:02:59.8]} 7... Nf6 {[%clk 0:02:45]} 8. Nc3
{[%clk 0:03:00.4]} 8... Qd8 {[%clk 0:02:42]} 9. Bd3 {[%clk 0:03:00.2]} 9... Be7
{[%clk 0:02:40.1]} 10. Be3 {[%clk 0:03:00.4]} 10... O-O {[%clk 0:02:40.2]} 11.
Qc2 {[%clk 0:03:00.9]} 11... b6 {[%clk 0:02:40]} 12. Ne4 {[%clk 0:03:00.8]}
12... Bb7 {[%clk 0:02:35.8]} 13. Nxf6+ {[%clk 0:03:00.7]} 13... Bxf6 {[%clk
0:02:36.7]} 14. Bxh7+ {[%clk 0:03:01.1]} 14... Kh8 {[%clk 0:02:37.4]} 15. Be4
{[%clk 0:03:01.7]} 15... Rc8 {[%clk 0:02:33.5]} 16. Qe2 {[%clk 0:03:01.9]} 16...
g6 {[%clk 0:01:51.6]} 17. O-O {[%clk 0:02:56.5]} 17... Qd7 {[%clk 0:01:49.9]}
18. Rfd1 {[%clk 0:02:55.6]} 18... Rfd8 {[%clk 0:01:48.9]} 19. Ne5 {[%clk
0:02:50.8]} 19... Qe7 {[%clk 0:01:40.4]} 20. Bxg6 {[%clk 0:02:11.4]} 20... Nxe5
{[%clk 0:01:27.8]} 21. Qh5+ {[%clk 0:02:10.6]} 21... Kg8 {[%clk 0:01:27.7]} 22.
Qh7+ {[%clk 0:02:05.9]} 22... Kf8 {[%clk 0:01:27.7]} 23. Bh6+ {[%clk 0:02:03.4]}
23... Ke8 {[%clk 0:01:27.1]} 24. dxe5 {[%clk 0:01:53.5]} 1-0

[Event "Early-Titled-Tuesday-Blitz-May-28-2024"]
[Site "Chess.com"]
[Date "2024.05.28"]
[Round "10"]
[White "Bob_2004"]
[Black "RandomNoob04"]
[Result "1-0"]
[WhiteElo "2556"]
[BlackElo "2763"]
[TimeControl "180+1"]
[EndTime "9:55:28 PDT"]
[Termination "Bob_2004 won by resignation"]

1. d4 {[%clk 0:03:00.9]} 1... Nf6 {[%clk 0:02:59.7]} 2. c4 {[%clk 0:03:01.4]}
2... c5 {[%clk 0:03:00]} 3. d5 {[%clk 0:03:01.7]} 3... b5 {[%clk 0:03:00.2]} 4.
cxb5 {[%clk 0:03:02.6]} 4... a6 {[%clk 0:03:00.8]} 5. Nc3 {[%clk 0:03:03.5]}
5... axb5 {[%clk 0:03:00.6]} 6. e4 {[%clk 0:03:04]} 6... b4 {[%clk 0:03:00.9]}
7. Nb5 {[%clk 0:03:04.6]} 7... d6 {[%clk 0:03:01.4]} 8. Bf4 {[%clk 0:03:05.1]}
8... g5 {[%clk 0:03:01.7]} 9. Bxg5 {[%clk 0:03:05.2]} 9... Nxe4 {[%clk
0:03:01.9]} 10. Bf4 {[%clk 0:03:05.9]} 10... Qa5 {[%clk 0:02:17.5]} 11. Bd3
{[%clk 0:02:59]} 11... Nf6 {[%clk 0:02:09.2]} 12. Nf3 {[%clk 0:02:57.9]} 12...
Ba6 {[%clk 0:02:02.5]} 13. a4 {[%clk 0:02:52.8]} 13... bxa3+ {[%clk 0:01:59.3]}
14. Bd2 {[%clk 0:02:52.2]} 14... Qb6 {[%clk 0:01:53.6]} 15. Rxa3 {[%clk
0:02:52.3]} 15... Bg7 {[%clk 0:01:41.1]} 16. Ba5 {[%clk 0:02:47.9]} 16... Qxb5
{[%clk 0:01:21.8]} 17. Bxb5+ {[%clk 0:02:47.2]} 17... Bxb5 {[%clk 0:01:22.7]}
18. Qb3 {[%clk 0:02:36.6]} 18... Ba6 {[%clk 0:01:12.4]} 19. Bc3 {[%clk
0:02:32.8]} 19... O-O {[%clk 0:01:10.6]} 20. Qa2 {[%clk 0:02:20.7]} 20... c4
{[%clk 0:00:40.5]} 21. O-O {[%clk 0:02:14.7]} 21... Nxd5 {[%clk 0:00:41]} 22.
Bxg7 {[%clk 0:02:14.6]} 22... Kxg7 {[%clk 0:00:41.9]} 23. Nd4 {[%clk 0:02:13.5]}
23... Nb4 {[%clk 0:00:41.8]} 24. Rg3+ {[%clk 0:02:12.5]} 24... Kh8 {[%clk
0:00:40.7]} 25. Qa5 {[%clk 0:02:12.1]} 25... e5 {[%clk 0:00:30.9]} 26. Qxb4
{[%clk 0:02:10.3]} 26... exd4 {[%clk 0:00:28.9]} 27. Qxd6 {[%clk 0:02:10.6]} 1-0

[Event "Early-Titled-Tuesday-Blitz-May-28-2024"]
[Site "Chess.com"]
[Date "2024.05.28"]
[Round "10"]
[White "Lion-Al-Messi"]
[Black "Quattroporte300"]
[Result "1-0"]
[WhiteElo "2615"]
[BlackElo "2396"]
[TimeControl "180+1"]
[EndTime "9:55:47 PDT"]
[Termination "Lion-Al-Messi won by resignation"]

1. e4 {[%clk 0:02:51.3]} 1... c5 {[%clk 0:02:59.8]} 2. Nf3 {[%clk 0:02:50.3]}
2... a6 {[%clk 0:03:00.3]} 3. c3 {[%clk 0:02:49.8]} 3... d5 {[%clk 0:02:59.9]}
4. exd5 {[%clk 0:02:47.7]} 4... Qxd5 {[%clk 0:03:00.8]} 5. d4 {[%clk 0:02:47.9]}
5... Nf6 {[%clk 0:03:00.9]} 6. Be2 {[%clk 0:02:46.4]} 6... e6 {[%clk 0:02:59.7]}
7. O-O {[%clk 0:02:46.5]} 7... Nc6 {[%clk 0:02:59.7]} 8. Be3 {[%clk 0:02:46.7]}
8... Be7 {[%clk 0:02:58.5]} 9. dxc5 {[%clk 0:02:46.9]} 9... Qxd1 {[%clk
0:02:55.5]} 10. Rxd1 {[%clk 0:02:47.8]} 10... Ng4 {[%clk 0:02:55.2]} 11. b4
{[%clk 0:02:43.1]} 11... Nxe3 {[%clk 0:02:50.1]} 12. fxe3 {[%clk 0:02:44]} 12...
f6 {[%clk 0:02:49.4]} 13. Nbd2 {[%clk 0:02:44.1]} 13... Kf7 {[%clk 0:02:47.1]}
14. Nc4 {[%clk 0:02:43.4]} 14... e5 {[%clk 0:02:40.3]} 15. Nd6+ {[%clk
0:02:43.6]} 15... Bxd6 {[%clk 0:02:37.8]} 16. Rxd6 {[%clk 0:02:44.5]} 16... Ke7
{[%clk 0:02:30.6]} 17. Rad1 {[%clk 0:02:43.5]} 17... Be6 {[%clk 0:02:29.7]} 18.
a4 {[%clk 0:02:43.5]} 18... Rhd8 {[%clk 0:02:25.1]} 19. a5 {[%clk 0:02:43.5]}
19... Rxd6 {[%clk 0:02:15.9]} 20. Rxd6 {[%clk 0:02:44.4]} 20... Rd8 {[%clk
0:01:59.5]} 21. Rxd8 {[%clk 0:02:44.4]} 21... Nxd8 {[%clk 0:01:58.7]} 22. Nd2
{[%clk 0:02:45.3]} 22... Kd7 {[%clk 0:01:55.6]} 23. Bf3 {[%clk 0:02:44.7]} 23...
Kc7 {[%clk 0:01:53.1]} 24. Ne4 {[%clk 0:02:44.1]} 24... Nf7 {[%clk 0:01:49.1]}
25. Nd6 {[%clk 0:02:41.4]} 25... f5 {[%clk 0:01:38.7]} 26. Nxf7 {[%clk
0:02:35.3]} 26... Bxf7 {[%clk 0:01:38.3]} 27. Kf2 {[%clk 0:02:35.1]} 27... Bc4
{[%clk 0:01:25]} 28. Be2 {[%clk 0:02:33.3]} 28... Bd5 {[%clk 0:01:24.8]} 29. g4
{[%clk 0:02:31.4]} 29... f4 {[%clk 0:01:13.6]} 30. exf4 {[%clk 0:02:32.3]} 30...
exf4 {[%clk 0:01:13.6]} 31. g5 {[%clk 0:02:33.2]} 31... Kd7 {[%clk 0:00:54.6]}
32. Bf3 {[%clk 0:02:31.8]} 32... Ke6 {[%clk 0:00:49.5]} 33. h4 {[%clk
0:02:27.3]} 33... Bc6 {[%clk 0:00:25.9]} 34. c4 {[%clk 0:02:21.5]} 34... Ke5
{[%clk 0:00:17.5]} 35. Bxc6 {[%clk 0:02:18.3]} 35... bxc6 {[%clk 0:00:17.4]} 36.
b5 {[%clk 0:02:19.2]} 36... cxb5 {[%clk 0:00:16.4]} 37. cxb5 {[%clk 0:02:20.1]}
37... Kd5 {[%clk 0:00:14.5]} 38. bxa6 {[%clk 0:02:19.9]} 38... Kc6 {[%clk
0:00:15.2]} 39. Kf3 {[%clk 0:02:20]} 1-0